fUST/lending_fUST_20250223
["ID","MTS","AMOUNT","RATE_DAILY","PERIOD"]
[354151960,1740291040361,-500.0,0.00014307,2]
[354151962,1740291040371,-1614.24,0.00014307,2]
[354151964,1740291040380,-500.0,0.00014307,2]
[354151966,1740291040390,-500.0,0.00014307,2]
[354151967,1740291040399,-500.0,0.00014309,2]
[354151969,1740291040408,-500.0,0.00014389,2]
[354151971,1740291040418,-500.0,0.00014389,2]
[354151973,1740291040427,-701.04,0.00014389,2]
[354151974,1740291040437,-1222.0,0.00014389,2]
[354151976,1740291040446,-527.35,0.00014389,2]
[354151978,1740291040456,-650.85,0.00014389,2]
[354151980,1740291040465,-500.0,0.00014389,2]
[354151982,1740291040474,-500.0,0.00014389,2]
[354151983,1740291040483,-450.54,0.00014389,2]
[354151985,1740291040492,-500.0,0.00014389,2]
[354151987,1740291040501,-588.31,0.00014389,2]
[354151989,1740291040511,-500.0,0.00014389,2]
[354151991,1740291040520,-500.0,0.0001439,2]
[354151992,1740291040530,-620.1044048,0.0001439,2]
[354151994,1740291040539,-500.0,0.0001439,2]
[354151996,1740291040549,-500.0,0.0001439,2]
[354151998,1740291040559,-2306.85,0.0001439,2]
[354152000,1740291040570,-797.23,0.0001439,2]
[354152001,1740291040579,-500.0,0.0001439,2]
[354152003,1740291040589,-500.0,0.0001439,2]
[354152005,1740291040598,-500.0,0.0001439,2]
[354152007,1740291040607,-500.0,0.0001439,2]
[354152009,1740291040617,-180.42950727,0.0001439,2]
[354152011,1740291040627,-500.0,0.0001439,2]
[354152012,1740291040636,-500.0,0.0001439,2]
[354152014,1740291040646,-500.0,0.0001439,2]
[354152016,1740291040655,-1873.7,0.0001439,2]
[354152018,1740291040665,-500.0,0.0001439,2]
[354152020,1740291040674,-500.0,0.0001439,2]
[354152022,1740291040683,-3899.45640599,0.0001439,2]
[354152029,1740291040763,-714.78080813,0.0001439,2]
[354152031,1740291040774,-2118.92278588,0.0001439,2]
[354152033,1740291040784,-500.0,0.0001439,2]
[354152035,1740291040793,-72.39171412,0.0001439,2]
[354152037,1740291040805,-330.154,0.0001439,2]
[354152042,1740291040853,-97.45428588,0.0001439,2]
[354152044,1740291040862,-16.89551475,0.0001439,2]
[354152046,1740291040876,-1597.34448525,0.0001439,2]
[354152048,1740291040886,-500.0,0.0001439,2]
[354152050,1740291040897,-500.0,0.0001439,2]
[354152052,1740291040906,-564.43,0.00014391,2]
[354152054,1740291040916,-500.0,0.00014471,2]
[354152056,1740291040925,-500.0,0.00014471,2]
[354152058,1740291040935,-701.04,0.00014471,2]
[354152059,1740291040944,-1222.0,0.00014471,2]
[354152061,1740291040954,-527.35,0.00014471,2]
[354152063,1740291040964,-650.85,0.00014471,2]
[354152065,1740291040974,-500.0,0.00014471,2]
[354152067,1740291040983,-318.69378289,0.00014471,2]
[354152069,1740291040992,-500.0,0.00014471,2]
[354152071,1740291041001,-500.0,0.00014471,2]
[354152073,1740291041010,-500.0,0.00014472,2]
[354152075,1740291041019,-2306.85,0.00014472,2]
[354152076,1740291041028,-797.23,0.00014472,2]
[354152078,1740291041038,-500.0,0.00014472,2]
[354152080,1740291041047,-500.0,0.00014472,2]
[354152082,1740291041056,-500.0,0.00014472,2]
[354152084,1740291041066,-500.0,0.00014472,2]
[354152086,1740291041076,-451.43489324,0.00014472,2]
[354152088,1740291041086,-500.0,0.00014472,2]
[354152090,1740291041095,-500.0,0.00014472,2]
[354152092,1740291041105,-1873.7,0.00014472,2]
[354152094,1740291041114,-500.0,0.00014472,2]
[354152095,1740291041124,-500.0,0.00014472,2]
[354152097,1740291041134,-6733.16,0.00014472,2]
[354152099,1740291041143,-500.0,0.00014472,2]
[354152101,1740291041153,-488.11,0.00014472,2]
[354152103,1740291041162,-1614.24,0.00014472,2]
[354152105,1740291041171,-500.0,0.00014472,2]
[354152107,1740291041181,-500.0,0.00014472,2]
[354152109,1740291041191,-500.0,0.00014553,2]
[354152110,1740291041199,-500.0,0.00014553,2]
[354152112,1740291041208,-701.04,0.00014553,2]
[354152114,1740291041218,-1222.0,0.00014553,2]
[354152116,1740291041228,-527.35,0.00014553,2]
[354152118,1740291041240,-650.85,0.00014553,2]
[354152120,1740291041249,-500.0,0.00014553,2]
[354152122,1740291041259,-500.0,0.00014553,2]
[354152123,1740291041268,-500.0,0.00014553,2]
[354152125,1740291041277,-500.0,0.00014554,2]
[354152127,1740291041288,-2306.85,0.00014554,2]
[354152129,1740291041298,-797.23,0.00014554,2]
[354152131,1740291041307,-500.0,0.00014554,2]
[354152133,1740291041316,-500.0,0.00014554,2]
[354152134,1740291041325,-500.0,0.00014554,2]
[354152136,1740291041335,-500.0,0.00014554,2]
[354152138,1740291041345,-429.60046797,0.00014554,2]
[354152140,1740291041355,-500.0,0.00014554,2]
[354152142,1740291041364,-1873.7,0.00014554,2]
[354152144,1740291041374,-210.68,0.00014554,2]
[354152146,1740291041383,-500.0,0.00014554,2]
[354152148,1740291041392,-6733.16,0.00014554,2]
[354152149,1740291041401,-500.0,0.00014554,2]
[354152151,1740291041411,-1614.24,0.00014554,2]
[354152153,1740291041420,-334.16519601,0.00014554,2]
[354152155,1740291041429,-12574.27545698,0.00014622,2]
[354152157,1740291041438,-582.37179385,0.00014635,2]
[354152159,1740291041447,-500.0,0.00014635,2]
[354152160,1740291041456,-701.04,0.00014635,2]
[354152162,1740291041466,-1222.0,0.00014635,2]
[354152164,1740291041475,-527.35,0.00014635,2]
[354152166,1740291041485,-650.85,0.00014635,2]
[354152168,1740291041495,-500.0,0.00014635,2]
[354152170,1740291041504,-500.0,0.00014635,2]
[354152172,1740291041513,-500.0,0.00014635,2]
[354152173,1740291041522,-500.0,0.00014636,2]
[354152175,1740291041531,-2306.85,0.00014636,2]
[354152177,1740291041540,-797.23,0.00014636,2]
[354152179,1740291041550,-500.0,0.00014636,2]
[354152181,1740291041559,-500.0,0.00014636,2]
[354152183,1740291041568,-500.0,0.00014636,2]
[354152185,1740291041578,-500.0,0.00014636,2]
[354152187,1740291041588,-500.0,0.00014636,2]
[354152188,1740291041598,-1873.7,0.00014636,2]
[354152190,1740291041607,-460.94540401,0.00014636,2]
[354152192,1740291041616,-6733.16,0.00014636,2]
[354152194,1740291041626,-500.0,0.00014636,2]
[354152196,1740291041635,-1614.24,0.00014636,2]
[354152198,1740291041644,-12924.89674434,0.00014682,2]
[354152200,1740291041654,-219.0182236,0.00014688,2]
[354152202,1740291041663,-500.0,0.00014717,2]
[354152204,1740291041672,-701.04,0.00014717,2]
[354152206,1740291041683,-1222.0,0.00014717,2]
[354152208,1740291041692,-527.35,0.00014717,2]
[354152209,1740291041701,-650.85,0.00014717,2]
[354152211,1740291041711,-236.07,0.00014717,2]
[354152213,1740291041720,-500.0,0.00014717,2]
[354152215,1740291041730,-500.0,0.00014717,2]
[354152217,1740291041738,-500.0,0.00014718,2]
[354152219,1740291041747,-2306.85,0.00014718,2]
[354152221,1740291041757,-797.23,0.00014718,2]
[354152223,1740291041767,-384.24131476,0.00014718,2]
[354152225,1740291041778,-500.0,0.00014718,2]
[354152227,1740291041787,-500.0,0.00014718,2]
[354152229,1740291041797,-439.1554356,0.00014718,2]
[354152231,1740291041807,-500.0,0.00014718,2]
[354152233,1740291041817,-1873.7,0.00014718,2]
[354152235,1740291041827,-6733.16,0.00014718,2]
[354152237,1740291041836,-254.02,0.00014718,2]
[354152239,1740291041846,-1614.24,0.00014718,2]
[354152241,1740291041855,-3000.0,0.00014773,2]
[354152243,1740291041865,-850.4,0.000148,5]
[354152245,1740291041874,-441.53033982,0.000148,2]
[354152247,1740291041883,-701.04,0.000148,2]
[354152249,1740291041893,-1222.0,0.000148,2]
[354152251,1740291041903,-527.35,0.000148,2]
[354152253,1740291041913,-650.85,0.000148,2]
[354152255,1740291041923,-500.0,0.000148,2]
[354152257,1740291041932,-500.0,0.000148,2]
[354152259,1740291041942,-500.0,0.00014801,2]
[354152261,1740291041951,-2306.85,0.00014801,2]
[354152263,1740291041960,-797.23,0.00014801,2]
[354152265,1740291041969,-500.0,0.00014801,2]
[354152267,1740291041980,-217.58,0.00014801,2]
[354152274,1740291042075,-620.21092039,0.00014801,2]
[354152275,1740291042085,-1873.7,0.00014801,2]
[354152276,1740291042094,-6733.16,0.00014801,2]
[354152277,1740291042104,-1614.24,0.00014801,2]
[354152278,1740291042114,-171.12504259,0.00014873,2]
[354152279,1740291042123,-500.0,0.00014873,2]
[354152280,1740291042132,-500.0,0.00014873,2]
[354152281,1740291042141,-500.0,0.00014873,2]
[354152282,1740291042150,-500.0,0.00014873,2]
[354152283,1740291042159,-500.0,0.00014873,2]
[354152284,1740291042168,-500.0,0.00014873,2]
[354152285,1740291042177,-701.04,0.00014882,2]
[354152286,1740291042186,-1222.0,0.00014882,2]
[354152287,1740291042196,-527.35,0.00014882,2]
[354152288,1740291042206,-650.85,0.00014882,2]
[354152289,1740291042215,-500.0,0.00014882,2]
[354152290,1740291042224,-500.0,0.00014882,2]
[354152291,1740291042233,-500.0,0.00014883,2]
[354152292,1740291042244,-2306.85,0.00014883,2]
[354152293,1740291042253,-797.23,0.00014883,2]
[354152294,1740291042263,-500.0,0.00014883,2]
[354152295,1740291042272,-1873.7,0.00014883,2]
[354152296,1740291042282,-6733.16,0.00014883,2]
[354152297,1740291042292,-1614.24,0.00014883,2]
[354152299,1740291042301,-1318.18844186,0.00014888,2]
[354152301,1740291042310,-2500.0,0.000149,2]
[354152303,1740291042321,-1628.79865643,0.000149,2]
[354152305,1740291042330,-141977.556615,0.000149,2]
[354152307,1740291042339,-169.39098883,0.00014901,2]
[354152308,1740291042349,-173.69,0.00014923,2]
[354152310,1740291042358,-478.74682157,0.00014948,2]
[354152312,1740291042368,-701.04,0.00014964,2]
[354152313,1740291042377,-1222.0,0.00014964,2]
[354152314,1740291042387,-527.35,0.00014964,2]
[354152315,1740291042396,-650.85,0.00014964,2]
[354152316,1740291042406,-500.0,0.00014964,2]
[354152317,1740291042416,-500.0,0.00014964,2]
[354152318,1740291042425,-500.0,0.00014965,2]
[354152319,1740291042435,-2306.85,0.00014965,2]
[354152320,1740291042444,-797.23,0.00014965,2]
[354152322,1740291042454,-500.0,0.00014965,2]
[354152324,1740291042463,-1873.7,0.00014965,2]
[354152325,1740291042472,-6733.16,0.00014965,2]
[354152327,1740291042482,-1614.24,0.00014965,2]
[354152329,1740291042491,-163.03544173,0.00014973,2]
[354152331,1740291042500,-500.0,0.00014973,2]
[354152334,1740291042510,-500.0,0.00014973,2]
[354152336,1740291042519,-500.0,0.00014973,2]
[354152337,1740291042529,-500.70906731,0.00014973,2]
[354152339,1740291042539,-509.04158611,0.00014973,2]
[354152341,1740291042549,-500.0,0.00014973,2]
[354152343,1740291042558,-500.78601293,0.00014973,2]
[354152345,1740291042568,-500.10290801,0.00014973,2]
[354152347,1740291042578,-622.1309853,0.00014973,2]
[354152349,1740291042587,-156.90533495,0.00014973,2]
[354152351,1740291042596,-251.51484246,0.00014973,2]
[354152352,1740291042606,-28395.511323,0.00014978,2]
[354152353,1740291042615,-151.522045,0.00014978,2]
[354152354,1740291042625,-218.828,0.00014978,2]
[354152355,1740291042635,-218.828,0.00014978,2]
[354152356,1740291042644,-113582.045292,0.00014978,2]
[354152357,1740291042654,-306.0,0.00014986,2]
[354152358,1740291042663,-309.592814,0.00014986,2]
[354152359,1740291042672,-358.7126771,0.00014986,2]
[354152360,1740291042682,-153.0,0.00014986,2]
[354152361,1740291042691,-153.0,0.00014986,2]
[354152362,1740291042702,-774.9129227,0.00014986,2]
[354152364,1740291042711,-205.819615,0.00014988,2]
[354152366,1740291042720,-151.0,0.00014988,2]
[354152368,1740291042730,-151.0,0.00014988,2]
[354152370,1740291042739,-161.024132,0.00014988,2]
[354152372,1740291042748,-151.0,0.00014988,2]
[354152374,1740291042757,-151.0,0.00014988,2]
[354152375,1740291042766,-151.0,0.00014988,2]
[354152377,1740291042775,-524.72635085,0.00014997,2]
[354152379,1740291042784,-224.88272179,0.00014997,2]
[354152381,1740291042793,-3853.83201779,0.00014998,5]
[354152382,1740291042803,-8625.1889477,0.00014998,5]
[354152384,1740291042813,-75082.96813511,0.00014998,5]
[354152414,1740291043081,-500.0,0.00014224,2]
[354152416,1740291043090,-500.0,0.00014306,2]
[354152418,1740291043100,-500.0,0.00014389,2]
[354152420,1740291043111,-500.0,0.00014471,2]
[354152422,1740291043120,-0.71157438,0.00014998,5]
[354152425,1740291043139,-22555.89811901,0.00014998,5]
[354152427,1740291043150,-469697.47207934,0.00014998,5]
[354152433,1740291043196,-1632.70828942,0.00014998,5]
[354152677,1740291046119,-500.0,0.00014553,2]
[354152678,1740291046128,-500.0,0.00014635,2]
[354152679,1740291046138,-500.0,0.00014717,2]
[354152680,1740291046148,-500.0,0.000148,2]
[354152681,1740291046157,-345.2,0.00014882,2]
[354152682,1740291046167,-38778.11211451,0.00014998,5]
[354152683,1740291046178,-11264.41369603,0.00014998,5]
[354152684,1740291050440,298.064454,9.041e-05,2]
[354152696,1740292111057,1119.16123286,0.00018204,90]
[354152697,1740292118289,296.128868,9.041e-05,2]
[354152841,1740292240537,-500.0,0.00014164,2]
[354152843,1740292240547,-500.0,0.00014222,2]
[354152845,1740292240557,-500.0,0.00014222,2]
[354152847,1740292240567,-757.03,0.00014222,2]
[354152849,1740292240580,-500.0,0.00014222,2]
[354152851,1740292240591,-500.0,0.00014222,2]
[354152853,1740292240600,-500.0,0.00014222,2]
[354152854,1740292240610,-500.0,0.00014222,2]
[354152856,1740292240620,-500.0,0.00014222,2]
[354152858,1740292240630,-500.0,0.00014222,2]
[354152860,1740292240639,-500.0,0.00014222,2]
[354152862,1740292240648,-500.0,0.00014222,2]
[354152864,1740292240659,-500.0,0.00014222,2]
[354152866,1740292240668,-500.0,0.00014222,2]
[354152868,1740292240676,-500.0,0.00014222,2]
[354152870,1740292240685,-500.0,0.00014222,2]
[354152872,1740292240695,-2264.05,0.00014222,2]
[354152885,1740292240706,-500.0,0.00014222,2]
[354152887,1740292240829,-500.0,0.00014222,2]
[354152889,1740292240839,-500.0,0.00014222,2]
[354152891,1740292240848,-500.0,0.00014222,2]
[354152893,1740292240857,-500.0,0.00014222,2]
[354152895,1740292240866,-500.0,0.00014222,2]
[354152897,1740292240875,-500.0,0.00014222,2]
[354152899,1740292240884,-8091.92,0.00014222,2]
[354152901,1740292240894,-784.47,0.00014222,2]
[354152903,1740292240903,-500.0,0.00014222,2]
[354152905,1740292240912,-500.0,0.00014222,2]
[354152906,1740292240921,-1903.81,0.00014222,2]
[354152908,1740292240931,-1313.65,0.00014222,2]
[354152910,1740292240940,-500.0,0.00014222,2]
[354152912,1740292240949,-500.0,0.00014222,2]
[354152914,1740292240958,-536.77,0.00014222,2]
[354152916,1740292240967,-662.47,0.00014222,2]
[354152918,1740292240976,-500.0,0.00014222,2]
[354152920,1740292240986,-500.0,0.00014222,2]
[354152922,1740292240995,-500.0,0.00014222,2]
[354152924,1740292241004,-500.0,0.00014222,2]
[354152926,1740292241013,-500.0,0.00014223,2]
[354152928,1740292241022,-551.7,0.00014223,2]
[354152929,1740292241031,-3402.61,0.00014223,2]
[354152931,1740292241040,-500.0,0.00014223,2]
[354152933,1740292241049,-224.8062211,0.00014223,2]
[354152935,1740292241059,-500.0,0.00014223,2]
[354152937,1740292241068,-500.0,0.00014223,2]
[354152939,1740292241078,-500.0,0.00014223,2]
[354152941,1740292241087,-500.0,0.00014223,2]
[354152942,1740292241096,-500.0,0.00014223,2]
[354152944,1740292241105,-500.0,0.00014223,2]
[354152946,1740292241114,-500.0,0.00014223,2]
[354152948,1740292241124,-500.0,0.00014223,2]
[354152950,1740292241132,-500.0,0.00014223,2]
[354152952,1740292241142,-500.0,0.00014223,2]
[354152954,1740292241151,-500.0,0.00014223,2]
[354152955,1740292241160,-500.0,0.00014223,2]
[354152957,1740292241170,-500.0,0.00014223,2]
[354152959,1740292241179,-500.0,0.00014223,2]
[354152961,1740292241188,-500.0,0.00014223,2]
[354152963,1740292241198,-638.59621379,0.00014223,2]
[354152965,1740292241208,-500.0,0.00014223,2]
[354152967,1740292241217,-501.32768621,0.00014223,2]
[354152969,1740292241226,-500.0,0.00014223,2]
[354152971,1740292241235,-500.0,0.00014223,2]
[354152972,1740292241244,-373.61986197,0.00014223,2]
[354152974,1740292241253,-510.20025937,0.00014223,2]
[354152976,1740292241263,-598.64,0.00014223,2]
[354152978,1740292241272,-500.0,0.00014223,2]
[354152980,1740292241281,-1000.0,0.00014223,2]
[354152982,1740292241291,-500.0,0.00014223,2]
[354152984,1740292241299,-500.0,0.00014223,2]
[354152986,1740292241310,-500.0,0.00014223,2]
[354152988,1740292241319,-427.62961432,0.00014223,2]
[354152989,1740292241328,-500.0,0.00014223,2]
[354152991,1740292241338,-500.0,0.00014223,2]
[354152993,1740292241347,-500.0,0.00014223,2]
[354152995,1740292241357,-500.0,0.00014223,2]
[354152997,1740292241369,-500.0,0.00014223,2]
[354152999,1740292241378,-500.0,0.00014223,2]
[354153001,1740292241387,-500.0,0.00014223,2]
[354153002,1740292241396,-500.0,0.00014223,2]
[354153004,1740292241405,-500.0,0.00014223,2]
[354153006,1740292241414,-500.0,0.00014223,2]
[354153008,1740292241423,-500.0,0.00014223,2]
[354153010,1740292241433,-507.34246424,0.00014223,2]
[354153012,1740292241442,-500.0,0.00014223,2]
[354153014,1740292241451,-500.0,0.00014223,2]
[354153016,1740292241460,-500.0,0.00014224,2]
[354153018,1740292241469,-500.0,0.00014224,2]
[354153020,1740292241478,-500.0,0.00014224,2]
[354153021,1740292241488,-500.0,0.00014304,2]
[354153023,1740292241498,-757.03,0.00014304,2]
[354153025,1740292241507,-500.0,0.00014304,2]
[354153027,1740292241518,-500.0,0.00014304,2]
[354153029,1740292241528,-500.0,0.00014304,2]
[354153031,1740292241537,-500.0,0.00014304,2]
[354153033,1740292241547,-500.0,0.00014304,2]
[354153035,1740292241557,-500.0,0.00014304,2]
[354153036,1740292241566,-386.64690722,0.00014304,2]
[354153037,1740292241579,-260.34266534,0.00014304,2]
[354153038,1740292241588,-500.0,0.00014304,2]
[354153039,1740292241598,-500.0,0.00014304,2]
[354153040,1740292241608,-500.0,0.00014304,2]
[354153041,1740292241619,-500.0,0.00014304,2]
[354153042,1740292241629,-2264.05,0.00014304,2]
[354153043,1740292241639,-500.0,0.00014304,2]
[354153044,1740292241649,-500.0,0.00014304,2]
[354153045,1740292241658,-169.81816957,0.00014304,2]
[354153046,1740292241668,-500.0,0.00014304,2]
[354153047,1740292241677,-500.0,0.00014304,2]
[354153048,1740292241686,-152.94014112,0.00014304,2]
[354153049,1740292241695,-8091.92,0.00014304,2]
[354153050,1740292241704,-784.47,0.00014304,2]
[354153051,1740292241713,-500.0,0.00014304,2]
[354153052,1740292241722,-500.0,0.00014304,2]
[354153053,1740292241731,-1903.81,0.00014304,2]
[354153054,1740292241740,-1313.65,0.00014304,2]
[354153055,1740292241750,-500.0,0.00014304,2]
[354153056,1740292241759,-500.0,0.00014304,2]
[354153057,1740292241768,-536.77,0.00014304,2]
[354153058,1740292241778,-662.47,0.00014304,2]
[354153060,1740292241788,-500.0,0.00014304,2]
[354153061,1740292241797,-500.0,0.00014304,2]
[354153063,1740292241807,-500.0,0.00014304,2]
[354153065,1740292241816,-500.0,0.00014304,2]
[354153067,1740292241825,-500.0,0.00014306,2]
[354153069,1740292241835,-551.7,0.00014306,2]
[354153071,1740292241844,-3402.61,0.00014306,2]
[354153073,1740292241853,-500.0,0.00014306,2]
[354153075,1740292241862,-476.0,0.00014306,2]
[354153077,1740292241871,-500.0,0.00014306,2]
[354153079,1740292241880,-500.0,0.00014306,2]
[354153081,1740292241890,-500.0,0.00014306,2]
[354153083,1740292241899,-333.19807125,0.00014306,2]
[354153085,1740292241908,-500.0,0.00014306,2]
[354153087,1740292241918,-500.0,0.00014306,2]
[354153089,1740292241927,-500.0,0.00014306,2]
[354153091,1740292241936,-514.88140452,0.00014306,2]
[354153093,1740292241946,-500.0,0.00014306,2]
[354153095,1740292241956,-500.0,0.00014306,2]
[354153097,1740292241965,-500.0,0.00014306,2]
[354153099,1740292241975,-500.0,0.00014306,2]
[354153101,1740292241984,-375.4725287,0.00014306,2]
[354153103,1740292241994,-500.0,0.00014306,2]
[354153105,1740292242004,-500.0,0.00014306,2]
[354153108,1740292242014,-500.0,0.00014306,2]
[354153109,1740292242024,-500.0,0.00014306,2]
[354153112,1740292242033,-500.0,0.00014306,2]
[354153113,1740292242042,-500.0,0.00014306,2]
[354153115,1740292242052,-217.61967346,0.00014306,2]
[354153117,1740292242062,-505.69988613,0.00014306,2]
[354153119,1740292242072,-500.0,0.00014306,2]
[354153122,1740292242081,-500.0,0.00014306,2]
[354153124,1740292242090,-500.0,0.00014306,2]
[354153126,1740292242099,-500.0,0.00014306,2]
[354153128,1740292242109,-505.99557686,0.00014306,2]
[354153129,1740292242118,-500.0,0.00014306,2]
[354153132,1740292242128,-500.0,0.00014306,2]
[354153134,1740292242137,-216.07203135,0.00014306,2]
[354153135,1740292242147,-500.0,0.00014306,2]
[354153137,1740292242156,-579.15425206,0.00014306,2]
[354153140,1740292242165,-500.0,0.00014306,2]
[354153141,1740292242174,-500.0,0.00014387,2]
[354153144,1740292242184,-757.03,0.00014387,2]
[354153146,1740292242193,-500.0,0.00014387,2]
[354153147,1740292242202,-500.0,0.00014387,2]
[354153150,1740292242212,-500.0,0.00014387,2]
[354153152,1740292242221,-500.0,0.00014387,2]
[354153154,1740292242231,-500.0,0.00014387,2]
[354153156,1740292242240,-500.0,0.00014387,2]
[354153158,1740292242249,-500.0,0.00014387,2]
[354153160,1740292242258,-500.0,0.00014387,2]
[354153162,1740292242267,-540.80948961,0.00014387,2]
[354153164,1740292242276,-2264.05,0.00014387,2]
[354153166,1740292242285,-484.88257258,0.00014387,2]
[354153168,1740292242294,-500.0,0.00014387,2]
[354153170,1740292242304,-500.0,0.00014387,2]
[354153172,1740292242313,-500.0,0.00014387,2]
[354153174,1740292242322,-8091.92,0.00014387,2]
[354153175,1740292242333,-784.47,0.00014387,2]
[354153177,1740292242342,-500.0,0.00014387,2]
[354153179,1740292242351,-500.0,0.00014387,2]
[354153181,1740292242360,-1903.81,0.00014387,2]
[354153183,1740292242370,-1313.65,0.00014387,2]
[354153185,1740292242379,-221.97517115,0.00014387,2]
[354153187,1740292242388,-500.0,0.00014387,2]
[354153189,1740292242397,-536.77,0.00014387,2]
[354153191,1740292242407,-662.47,0.00014387,2]
[354153193,1740292242416,-500.0,0.00014387,2]
[354153195,1740292242425,-500.0,0.00014387,2]
[354153197,1740292242434,-318.69378289,0.00014387,2]
[354153199,1740292242444,-500.0,0.00014387,2]
[354153201,1740292242454,-621.53231473,0.00014388,2]
[354153203,1740292242463,-551.7,0.00014388,2]
[354153205,1740292242472,-3402.61,0.00014388,2]
[354153207,1740292242482,-328.76146908,0.00014388,2]
[354153209,1740292242491,-500.0,0.00014388,2]
[354153211,1740292242500,-500.0,0.00014388,2]
[354153213,1740292242509,-174.89905902,0.00014388,2]
[354153215,1740292242519,-500.0,0.00014388,2]
[354153217,1740292242528,-577.19376363,0.00014388,2]
[354153219,1740292242536,-500.0,0.00014388,2]
[354153221,1740292242546,-500.0,0.00014388,2]
[354153223,1740292242555,-500.0,0.00014388,2]
[354153226,1740292242564,-558.14935204,0.00014388,2]
[354153227,1740292242576,-500.0,0.00014388,2]
[354153229,1740292242586,-332.02882842,0.00014388,2]
[354153231,1740292242596,-500.0,0.00014388,2]
[354153234,1740292242605,-500.0,0.00014388,2]
[354153236,1740292242615,-500.0,0.00014388,2]
[354153238,1740292242624,-500.0,0.00014388,2]
[354153239,1740292242634,-500.0,0.00014388,2]
[354153241,1740292242643,-500.0,0.00014388,2]
[354153244,1740292242654,-500.0,0.00014388,2]
[354153246,1740292242663,-438.45457882,0.00014388,2]
[354153248,1740292242672,-500.0,0.00014388,2]
[354153250,1740292242681,-313.18793951,0.00014389,2]
[354153251,1740292242690,-500.0,0.00014389,2]
[354153253,1740292242700,-500.0,0.00014469,2]
[354153256,1740292242709,-757.03,0.00014469,2]
[354153259,1740292242718,-500.0,0.00014469,2]
[354153262,1740292242727,-500.0,0.00014469,2]
[354153265,1740292242736,-500.0,0.00014469,2]
[354153267,1740292242745,-497.9831486,0.00014469,2]
[354153270,1740292242755,-500.0,0.00014469,2]
[354153271,1740292242764,-500.0,0.00014469,2]
[354153273,1740292242773,-500.0,0.00014469,2]
[354153276,1740292242782,-500.0,0.00014469,2]
[354153278,1740292242791,-2264.05,0.00014469,2]
[354153281,1740292242800,-500.0,0.00014469,2]
[354153283,1740292242810,-500.0,0.00014469,2]
[354153284,1740292242819,-500.0,0.00014469,2]
[354153286,1740292242829,-8091.92,0.00014469,2]
[354153289,1740292242838,-784.47,0.00014469,2]
[354153290,1740292242848,-500.0,0.00014469,2]
[354153292,1740292242856,-500.0,0.00014469,2]
[354153294,1740292242866,-1903.81,0.00014469,2]
[354153296,1740292242875,-1313.65,0.00014469,2]
[354153299,1740292242885,-500.0,0.00014469,2]
[354153300,1740292242894,-536.77,0.00014469,2]
[354153303,1740292242904,-662.47,0.00014469,2]
[354153305,1740292242914,-500.0,0.00014469,2]
[354153307,1740292242923,-500.0,0.00014469,2]
[354153309,1740292242933,-551.7,0.0001447,2]
[354153311,1740292242942,-3402.61,0.0001447,2]